[Event "Titled Tuesday Blitz June 28 Early 2022"]
[White "Andreikin, Dmitry"]
[Black "Fedoseev, Vladimir"]
[WhiteFideId "4158814"]
[BlackFideId "24130737"]
[WhiteElo "2736"]
[BlackElo "2726"]
[Result "1-0"]
[Round "07"]
[TimeControl "180+1"]
[Date "2022.06.28"]
[WhiteClock "0:00:23"]
[BlackClock "0:00:02"]

1. d4 {[%clk 0:03:00]}  Nf6 {[%clk 0:02:43]} 2. c4 {[%clk 0:03:01]}  g6 {[%clk 0:02:44]} 3. Nc3 {[%clk 0:03:00]}  d5 {[%clk 0:02:44]} 4. cxd5 {[%clk 0:03:00]}  Nxd5 {[%clk 0:02:44]} 5. e4 {[%clk 0:03:01]}  Nxc3 {[%clk 0:02:44]} 6. bxc3 {[%clk 0:03:02]}  Bg7 {[%clk 0:02:44]} 7. Be3 {[%clk 0:03:02]}  c5 {[%clk 0:02:43]} 8. Qd2 {[%clk 0:03:03]}  O-O {[%clk 0:02:42]} 9. Nf3 {[%clk 0:03:03]}  Qa5 {[%clk 0:02:38]} 10. Rb1 {[%clk 0:03:03]}  a6 {[%clk 0:02:31]} 11. Rc1 {[%clk 0:03:03]}  Rd8 {[%clk 0:02:30]} 12. d5 {[%clk 0:03:00]}  e6 {[%clk 0:02:30]} 13. Bg5 {[%clk 0:03:00]}  f6 {[%clk 0:02:29]} 14. Be3 {[%clk 0:02:59]}  Nc6 {[%clk 0:02:25]} 15. Bd3 {[%clk 0:02:57]}  exd5 {[%clk 0:02:15]} 16. exd5 {[%clk 0:02:58]}  c4 {[%clk 0:02:08]} 17. Bxc4 {[%clk 0:02:57]}  Be6 {[%clk 0:02:08]} 18. Rd1 {[%clk 0:02:52]}  Ne7 {[%clk 0:02:07]} 19. dxe6 {[%clk 0:02:42]}  Rxd2 {[%clk 0:02:06]} 20. Rxd2 {[%clk 0:02:42]}  Qxc3 {[%clk 0:02:02]} 21. Bb3 {[%clk 0:02:42]}  a5 {[%clk 0:01:46]} 22. O-O {[%clk 0:02:35]}  a4 {[%clk 0:01:45]} 23. Bxa4 {[%clk 0:02:25]}  Nf5 {[%clk 0:01:10]} 24. Bb3 {[%clk 0:02:20]}  Kh8 {[%clk 0:01:10]} 25. Rc2 {[%clk 0:01:53]}  Qd3 {[%clk 0:00:57]} 26. Rd2 {[%clk 0:01:48]}  Qc3 {[%clk 0:00:50]} 27. Bd4 {[%clk 0:01:28]}  Qb4 {[%clk 0:00:43]} 28. Rfd1 {[%clk 0:01:25]}  Re8 {[%clk 0:00:27]} 29. Bb2 {[%clk 0:01:20]}  h5 {[%clk 0:00:26]} 30. h3 {[%clk 0:01:18]}  Kh7 {[%clk 0:00:25]} 31. Rd7 {[%clk 0:01:11]}  Kh6 {[%clk 0:00:23]} 32. Nd4 {[%clk 0:01:02]}  Ne7 {[%clk 0:00:17]} 33. Bc1+ {[%clk 0:01:00]}  Kh7 {[%clk 0:00:17]} 34. Bf4 {[%clk 0:00:59]}  Nf5 {[%clk 0:00:15]} 35. Nxf5 {[%clk 0:00:57]}  gxf5 {[%clk 0:00:14]} 36. Bd6 {[%clk 0:00:55]}  Qb5 {[%clk 0:00:14]} 37. Ba3 {[%clk 0:00:51]}  Kg6 {[%clk 0:00:13]} 38. e7 {[%clk 0:00:50]}  Qe2 {[%clk 0:00:10]} 39. Bb4 {[%clk 0:00:45]}  Bh6 {[%clk 0:00:10]} 40. Re1 {[%clk 0:00:42]}  Qb5 {[%clk 0:00:10]} 41. Rd4 {[%clk 0:00:39]}  Qb6 {[%clk 0:00:10]} 42. Red1 {[%clk 0:00:32]}  Qc6 {[%clk 0:00:05]} 43. Rd8 {[%clk 0:00:30]}  Rxe7 {[%clk 0:00:02]} 44. Bxe7 {[%clk 0:00:29]}  h4 {[%clk 0:00:03]} 45. Rg8+ {[%clk 0:00:29]}  Kh7 {[%clk 0:00:03]} 46. Rgd8 {[%clk 0:00:29]}  Bf4 {[%clk 0:00:03]} 47. R8d5 {[%clk 0:00:28]}  Kg6 {[%clk 0:00:02]} 48. Bc5 {[%clk 0:00:26]}  Qb5 {[%clk 0:00:01]} 49. Bc2 {[%clk 0:00:23]}  Qc4 {[%clk 0:00:01]} 50. Bxf5+ {[%clk 0:00:23]}  Kh6 {[%clk 0:00:02]} 51. Bf8+ {[%clk 0:00:23]} 1-0


[Site "https://www.chess.com"]

[Event "Titled Tuesday Blitz June 28 Early 2022"]
[White "Aradhya, Garg"]
[Black "Kozlov, Oleg"]
[WhiteFideId "25006746"]
[BlackFideId "4104544"]
[WhiteElo "2203"]
[BlackElo "2132"]
[Result "0-1"]
[Round "07"]
[TimeControl "180+1"]
[Date "2022.06.28"]
[WhiteClock "0:01:07"]
[BlackClock "0:01:29"]

1. d4 {[%clk 0:02:59]}  f5 {[%clk 0:02:58]} 2. g3 {[%clk 0:02:59]}  Nf6 {[%clk 0:02:58]} 3. Bg2 {[%clk 0:02:59]}  g6 {[%clk 0:02:59]} 4. Nd2 {[%clk 0:02:58]}  Bg7 {[%clk 0:02:55]} 5. e4 {[%clk 0:02:57]}  fxe4 {[%clk 0:02:56]} 6. Nxe4 {[%clk 0:02:57]}  Nxe4 {[%clk 0:02:57]} 7. Bxe4 {[%clk 0:02:58]}  O-O {[%clk 0:02:55]} 8. Ne2 {[%clk 0:02:57]}  d5 {[%clk 0:02:56]} 9. Bg2 {[%clk 0:02:56]}  c6 {[%clk 0:02:54]} 10. O-O {[%clk 0:02:56]}  e5 {[%clk 0:02:53]} 11. c4 {[%clk 0:02:55]}  dxc4 {[%clk 0:02:51]} 12. dxe5 {[%clk 0:02:48]}  Qxd1 {[%clk 0:02:50]} 13. Rxd1 {[%clk 0:02:47]}  Bg4 {[%clk 0:02:50]} 14. f3 {[%clk 0:02:38]}  Bxf3 {[%clk 0:02:49]} 15. Bxf3 {[%clk 0:02:38]}  Rxf3 {[%clk 0:02:50]} 16. e6 {[%clk 0:02:38]}  Rd3 {[%clk 0:02:41]} 17. Re1 {[%clk 0:02:32]}  Na6 {[%clk 0:02:39]} 18. Nf4 {[%clk 0:02:26]}  Rd6 {[%clk 0:02:36]} 19. Rb1 {[%clk 0:02:23]}  Re8 {[%clk 0:02:32]} 20. b3 {[%clk 0:02:21]}  c3 {[%clk 0:02:32]} 21. Ba3 {[%clk 0:02:19]}  c5 {[%clk 0:02:29]} 22. Rbd1 {[%clk 0:02:18]}  Bd4+ {[%clk 0:02:29]} 23. Kg2 {[%clk 0:02:17]}  g5 {[%clk 0:02:28]} 24. Rxd4 {[%clk 0:02:05]}  Rxd4 {[%clk 0:02:26]} 25. Nh5 {[%clk 0:02:04]}  Re7 {[%clk 0:02:19]} 26. Re5 {[%clk 0:01:57]}  h6 {[%clk 0:02:10]} 27. Nf6+ {[%clk 0:01:52]}  Kg7 {[%clk 0:02:08]} 28. Nd5 {[%clk 0:01:52]}  Re8 {[%clk 0:02:03]} 29. Bc1 {[%clk 0:01:26]}  Nb4 {[%clk 0:01:45]} 30. Ne3 {[%clk 0:01:20]}  Nd3 {[%clk 0:01:41]} 31. Rxc5 {[%clk 0:01:17]}  Nxc5 {[%clk 0:01:37]} 32. Nf5+ {[%clk 0:01:16]}  Kf6 {[%clk 0:01:37]} 33. Nxd4 {[%clk 0:01:17]}  Nxe6 {[%clk 0:01:37]} 34. Nb5 {[%clk 0:01:13]}  c2 {[%clk 0:01:34]} 35. Kf3 {[%clk 0:01:12]}  Rd8 {[%clk 0:01:33]} 36. Bb2+ {[%clk 0:01:08]}  Ke7 {[%clk 0:01:32]} 37. Ba3+ {[%clk 0:01:08]}  Kf7 {[%clk 0:01:28]} 38. Nc3 {[%clk 0:01:07]}  Rd1 {[%clk 0:01:28]} 39. Ne2 {[%clk 0:01:07]}  Nd4+ {[%clk 0:01:27]} 40. Nxd4 {[%clk 0:01:07]}  Rxd4 {[%clk 0:01:28]} 41. Ke2 {[%clk 0:01:07]}  Rd1 {[%clk 0:01:29]} 0-1


[Site "https://www.chess.com"]

[Event "Titled Tuesday Blitz June 28 Early 2022"]
[White "Araujo Sanchez, Josue"]
[Black "Ozdemir, Serhan Berat"]
[WhiteFideId "6416896"]
[BlackFideId "6374611"]
[WhiteElo "2339"]
[BlackElo "1920"]
[Result "1-0"]
[Round "07"]
[TimeControl "180+1"]
[Date "2022.06.28"]
[WhiteClock "0:01:29"]
[BlackClock "0:00:03"]

1. Nf3 {[%clk 0:03:00]}  Nf6 {[%clk 0:02:59]} 2. c4 {[%clk 0:02:58]}  g6 {[%clk 0:03:00]} 3. b3 {[%clk 0:02:58]}  Bg7 {[%clk 0:03:00]} 4. Bb2 {[%clk 0:02:59]}  O-O {[%clk 0:03:00]} 5. g3 {[%clk 0:03:00]}  d6 {[%clk 0:03:00]} 6. Bg2 {[%clk 0:02:59]}  e5 {[%clk 0:02:57]} 7. O-O {[%clk 0:02:59]}  c6 {[%clk 0:02:41]} 8. d4 {[%clk 0:02:51]}  e4 {[%clk 0:02:40]} 9. Nfd2 {[%clk 0:02:49]}  Re8 {[%clk 0:02:34]} 10. e3 {[%clk 0:02:47]}  Bf5 {[%clk 0:02:12]} 11. Nc3 {[%clk 0:02:38]}  Qe7 {[%clk 0:02:08]} 12. h3 {[%clk 0:02:36]}  h5 {[%clk 0:02:08]} 13. Re1 {[%clk 0:02:36]}  Nbd7 {[%clk 0:02:06]} 14. f3 {[%clk 0:02:36]}  d5 {[%clk 0:01:53]} 15. fxe4 {[%clk 0:02:31]}  Nxe4 {[%clk 0:01:41]} 16. Ndxe4 {[%clk 0:02:26]}  dxe4 {[%clk 0:01:41]} 17. Rf1 {[%clk 0:02:24]}  Qg5 {[%clk 0:01:35]} 18. Qe1 {[%clk 0:02:18]}  Bh6 {[%clk 0:01:14]} 19. Bc1 {[%clk 0:02:18]}  c5 {[%clk 0:01:00]} 20. Nd5 {[%clk 0:02:12]}  Bg7 {[%clk 0:00:35]} 21. h4 {[%clk 0:02:08]}  Qd8 {[%clk 0:00:35]} 22. Bb2 {[%clk 0:02:02]}  cxd4 {[%clk 0:00:28]} 23. exd4 {[%clk 0:01:58]}  Nb6 {[%clk 0:00:23]} 24. Rxf5 {[%clk 0:01:44]}  gxf5 {[%clk 0:00:22]} 25. Ne3 {[%clk 0:01:45]}  Bxd4 {[%clk 0:00:20]} 26. Bxd4 {[%clk 0:01:46]}  Qxd4 {[%clk 0:00:20]} 27. Rd1 {[%clk 0:01:46]}  Qc5 {[%clk 0:00:15]} 28. Qf2 {[%clk 0:01:47]}  Rad8 {[%clk 0:00:15]} 29. Rf1 {[%clk 0:01:47]}  Rd3 {[%clk 0:00:14]} 30. Re1 {[%clk 0:01:46]}  Red8 {[%clk 0:00:12]} 31. Qf4 {[%clk 0:01:43]}  Kf8 {[%clk 0:00:07]} 32. Kh2 {[%clk 0:01:42]}  R8d6 {[%clk 0:00:07]} 33. Nxf5 {[%clk 0:01:37]}  Rf6 {[%clk 0:00:07]} 34. Bxe4 {[%clk 0:01:37]}  Rd8 {[%clk 0:00:04]} 35. Re2 {[%clk 0:01:35]}  Nd7 {[%clk 0:00:03]} 36. Qg5 {[%clk 0:01:35]}  Qe5 {[%clk 0:00:03]} 37. Qg7+ {[%clk 0:01:31]}  Ke8 {[%clk 0:00:03]} 38. Qg8+ {[%clk 0:01:31]}  Nf8 {[%clk 0:00:04]} 39. Bc6+ {[%clk 0:01:32]}  bxc6 {[%clk 0:00:02]} 40. Rxe5+ {[%clk 0:01:32]}  Re6 {[%clk 0:00:02]} 41. Rxe6+ {[%clk 0:01:32]}  fxe6 {[%clk 0:00:03]} 42. Ne3 {[%clk 0:01:30]}  Rd2+ {[%clk 0:00:02]} 43. Kh3 {[%clk 0:01:30]}  Ke7 {[%clk 0:00:03]} 44. Qg7+ {[%clk 0:01:30]}  Ke8 {[%clk 0:00:03]} 45. c5 {[%clk 0:01:30]}  Rd7 {[%clk 0:00:02]} 46. Qe5 {[%clk 0:01:29]}  Rf7 {[%clk 0:00:02]} 47. Nc4 {[%clk 0:01:29]}  Nd7 {[%clk 0:00:02]} 48. Nd6+ {[%clk 0:01:30]}  Ke7 {[%clk 0:00:03]} 49. Qg5+ {[%clk 0:01:30]}  Rf6 {[%clk 0:00:03]} 50. Ne4 {[%clk 0:01:29]} 1-0


[Site "https://www.chess.com"]

[Event "Titled Tuesday Blitz June 28 Early 2022"]
[White "Ardila, Oscar Humberto"]
[Black "Hafiz, Arif Abdul"]
[WhiteFideId "4404742"]
[BlackFideId "7104227"]
[WhiteElo "1956"]
[BlackElo "2198"]
[Result "0-1"]
[Round "07"]
[TimeControl "180+1"]
[Date "2022.06.28"]
[WhiteClock "0:02:09"]
[BlackClock "0:01:52"]

1. d4 {[%clk 0:03:00]}  c5 {[%clk 0:02:59]} 2. d5 {[%clk 0:03:00]}  Nf6 {[%clk 0:02:55]} 3. c4 {[%clk 0:03:00]}  d6 {[%clk 0:02:54]} 4. Nc3 {[%clk 0:03:00]}  e5 {[%clk 0:02:54]} 5. e4 {[%clk 0:02:59]}  Be7 {[%clk 0:02:55]} 6. Be2 {[%clk 0:02:59]}  O-O {[%clk 0:02:55]} 7. Nf3 {[%clk 0:02:59]}  a6 {[%clk 0:02:56]} 8. a4 {[%clk 0:02:58]}  Ne8 {[%clk 0:02:55]} 9. Be3 {[%clk 0:02:57]}  f5 {[%clk 0:02:55]} 10. exf5 {[%clk 0:02:57]}  Bxf5 {[%clk 0:02:56]} 11. Qd2 {[%clk 0:02:56]}  Nd7 {[%clk 0:02:56]} 12. h3 {[%clk 0:02:53]}  e4 {[%clk 0:02:52]} 13. Nh4 {[%clk 0:02:49]}  Bxh4 {[%clk 0:02:50]} 14. g3 {[%clk 0:02:45]}  Bf6 {[%clk 0:02:49]} 15. O-O-O {[%clk 0:02:45]}  Ne5 {[%clk 0:02:48]} 16. g4 {[%clk 0:02:43]}  Bg6 {[%clk 0:02:45]} 17. Rdg1 {[%clk 0:02:41]}  Nf3 {[%clk 0:02:38]} 18. Bxf3 {[%clk 0:02:40]}  exf3 {[%clk 0:02:39]} 19. h4 {[%clk 0:02:40]}  Qa5 {[%clk 0:02:37]} 20. h5 {[%clk 0:02:36]}  Bxc3 {[%clk 0:02:36]} 21. bxc3 {[%clk 0:02:31]}  Be4 {[%clk 0:02:36]} 22. Kb2 {[%clk 0:02:23]}  Qxa4 {[%clk 0:02:33]} 23. Ra1 {[%clk 0:02:23]}  Qxc4 {[%clk 0:02:32]} 24. Rhd1 {[%clk 0:02:21]}  Nf6 {[%clk 0:02:29]} 25. Bf4 {[%clk 0:02:20]}  Qb5+ {[%clk 0:02:24]} 26. Kc1 {[%clk 0:02:19]}  Nxd5 {[%clk 0:02:23]} 27. Bxd6 {[%clk 0:02:19]}  Rfd8 {[%clk 0:02:22]} 28. Be5 {[%clk 0:02:13]}  Nb6 {[%clk 0:01:52]} 29. Qg5 {[%clk 0:02:09]}  Rxd1+ {[%clk 0:01:51]} 30. Kxd1 {[%clk 0:02:09]}  Qe2+ {[%clk 0:01:52]} 31. Kc1 {[%clk 0:02:09]}  Qc2# {[%clk 0:01:52]} 0-1


[Site "https://www.chess.com"]

[Event "Titled Tuesday Blitz June 28 Early 2022"]
[White "Begunov, Konstantin"]
[Black "Thorhallsson, Simon"]
[WhiteFideId "4118510"]
[BlackFideId "2310090"]
[WhiteElo "2262"]
[BlackElo "2137"]
[Result "0-1"]
[Round "07"]
[TimeControl "180+1"]
[Date "2022.06.28"]
[WhiteClock "0:00:01"]
[BlackClock "0:00:04"]

1. d4 {[%clk 0:02:56]}  Nf6 {[%clk 0:02:57]} 2. c4 {[%clk 0:02:56]}  e5 {[%clk 0:02:57]} 3. dxe5 {[%clk 0:02:55]}  Ng4 {[%clk 0:02:56]} 4. Bf4 {[%clk 0:02:56]}  Nc6 {[%clk 0:02:51]} 5. Nf3 {[%clk 0:02:55]}  Bb4+ {[%clk 0:02:51]} 6. Nbd2 {[%clk 0:02:55]}  Qe7 {[%clk 0:02:51]} 7. e3 {[%clk 0:02:56]}  Ngxe5 {[%clk 0:02:50]} 8. Nxe5 {[%clk 0:02:57]}  Nxe5 {[%clk 0:02:51]} 9. Be2 {[%clk 0:02:57]}  a5 {[%clk 0:02:50]} 10. O-O {[%clk 0:02:57]}  a4 {[%clk 0:02:51]} 11. Ne4 {[%clk 0:02:31]}  a3 {[%clk 0:02:39]} 12. bxa3 {[%clk 0:02:11]}  Bxa3 {[%clk 0:02:30]} 13. c5 {[%clk 0:01:59]}  O-O {[%clk 0:02:17]} 14. Qc2 {[%clk 0:01:53]}  Re8 {[%clk 0:02:10]} 15. Rfd1 {[%clk 0:01:48]}  Ng6 {[%clk 0:02:08]} 16. f3 {[%clk 0:00:41]}  Nxf4 {[%clk 0:02:06]} 17. exf4 {[%clk 0:00:42]}  d6 {[%clk 0:01:42]} 18. cxd6 {[%clk 0:00:41]}  cxd6 {[%clk 0:01:42]} 19. Bc4 {[%clk 0:00:36]}  Bf5 {[%clk 0:01:37]} 20. Bd5 {[%clk 0:00:33]}  h6 {[%clk 0:01:24]} 21. Qb3 {[%clk 0:00:32]}  Bxe4 {[%clk 0:01:17]} 22. fxe4 {[%clk 0:00:32]}  Bc5+ {[%clk 0:01:17]} 23. Kh1 {[%clk 0:00:31]}  Qh4 {[%clk 0:01:09]} 24. Qxb7 {[%clk 0:00:24]}  Ra7 {[%clk 0:01:01]} 25. Qc6 {[%clk 0:00:17]}  Rf8 {[%clk 0:00:51]} 26. Rf1 {[%clk 0:00:18]}  Qe7 {[%clk 0:00:15]} 27. a4 {[%clk 0:00:16]}  Rb8 {[%clk 0:00:11]} 28. a5 {[%clk 0:00:14]}  Rb4 {[%clk 0:00:09]} 29. a6 {[%clk 0:00:13]}  Rb6 {[%clk 0:00:08]} 30. Qc8+ {[%clk 0:00:13]}  Kh7 {[%clk 0:00:08]} 31. Qf5+ {[%clk 0:00:12]}  Kg8 {[%clk 0:00:08]} 32. Bc4 {[%clk 0:00:11]}  Rb8 {[%clk 0:00:05]} 33. Qd5 {[%clk 0:00:11]}  Re8 {[%clk 0:00:05]} 34. f5 {[%clk 0:00:11]}  Qxe4 {[%clk 0:00:02]} 35. Qxe4 {[%clk 0:00:07]}  Rxe4 {[%clk 0:00:03]} 36. Bd5 {[%clk 0:00:06]}  Re5 {[%clk 0:00:03]} 37. Bb7 {[%clk 0:00:06]}  Kf8 {[%clk 0:00:03]} 38. h3 {[%clk 0:00:07]}  Ke7 {[%clk 0:00:03]} 39. Rf3 {[%clk 0:00:07]}  Kf6 {[%clk 0:00:04]} 40. Rc1 {[%clk 0:00:07]}  Rxf5 {[%clk 0:00:03]} 41. Rxf5+ {[%clk 0:00:06]}  Kxf5 {[%clk 0:00:04]} 42. Rf1+ {[%clk 0:00:07]}  Ke6 {[%clk 0:00:04]} 43. g4 {[%clk 0:00:07]}  g6 {[%clk 0:00:04]} 44. Kg2 {[%clk 0:00:07]}  f5 {[%clk 0:00:04]} 45. Kf3 {[%clk 0:00:07]}  g5 {[%clk 0:00:04]} 46. Re1+ {[%clk 0:00:08]}  Kf6 {[%clk 0:00:04]} 47. gxf5 {[%clk 0:00:08]}  Kxf5 {[%clk 0:00:05]} 48. Bc8+ {[%clk 0:00:08]}  Kf6 {[%clk 0:00:04]} 49. Re6+ {[%clk 0:00:07]}  Kg7 {[%clk 0:00:02]} 50. Kg4 {[%clk 0:00:06]}  Rc7 {[%clk 0:00:01]} 51. Bb7 {[%clk 0:00:06]}  Rf7 {[%clk 0:00:02]} 52. Bd5 {[%clk 0:00:03]}  Rf4+ {[%clk 0:00:03]} 53. Kg3 {[%clk 0:00:03]}  Ra4 {[%clk 0:00:03]} 54. Re7+ {[%clk 0:00:01]}  Kf6 {[%clk 0:00:04]} 55. Re6+ {[%clk 0:00:01]}  Kf5 {[%clk 0:00:04]} 0-1


[Site "https://www.chess.com"]

[Event "Titled Tuesday Blitz June 28 Early 2022"]
[White "Bolanos, Fernando"]
[Black "D`Arruda, Ricardo D."]
[WhiteFideId "3304094"]
[BlackFideId "100692"]
[WhiteElo "2048"]
[BlackElo "2472"]
[Result "1-0"]
[Round "07"]
[TimeControl "180+1"]
[Date "2022.06.28"]
[WhiteClock "0:02:20"]
[BlackClock "0:00:14"]

1. e4 {[%clk 0:03:00]}  c5 {[%clk 0:01:36]} 2. Nf3 {[%clk 0:02:57]}  e6 {[%clk 0:01:36]} 3. d4 {[%clk 0:02:57]}  cxd4 {[%clk 0:01:36]} 4. Nxd4 {[%clk 0:02:58]}  d6 {[%clk 0:01:36]} 5. c4 {[%clk 0:02:58]}  Nf6 {[%clk 0:01:36]} 6. Nc3 {[%clk 0:02:58]}  Be7 {[%clk 0:01:37]} 7. Be3 {[%clk 0:02:59]}  Nc6 {[%clk 0:01:37]} 8. Be2 {[%clk 0:03:00]}  a6 {[%clk 0:01:37]} 9. O-O {[%clk 0:03:00]}  Qc7 {[%clk 0:01:37]} 10. Rc1 {[%clk 0:03:00]}  Qb8 {[%clk 0:01:36]} 11. Qd2 {[%clk 0:02:56]}  Bd7 {[%clk 0:01:35]} 12. f3 {[%clk 0:02:56]}  O-O {[%clk 0:01:36]} 13. Rfd1 {[%clk 0:02:53]}  Rd8 {[%clk 0:01:35]} 14. a3 {[%clk 0:02:51]}  b6 {[%clk 0:01:35]} 15. b4 {[%clk 0:02:49]}  Qb7 {[%clk 0:01:35]} 16. Qe1 {[%clk 0:02:49]}  Be8 {[%clk 0:01:35]} 17. Qf2 {[%clk 0:02:49]}  Rac8 {[%clk 0:01:33]} 18. Nxc6 {[%clk 0:02:48]}  Rxc6 {[%clk 0:01:33]} 19. b5 {[%clk 0:02:49]}  axb5 {[%clk 0:01:34]} 20. cxb5 {[%clk 0:02:50]}  Rc5 {[%clk 0:01:32]} 21. Bxc5 {[%clk 0:02:50]}  bxc5 {[%clk 0:01:33]} 22. a4 {[%clk 0:02:49]}  Ra8 {[%clk 0:01:33]} 23. Ra1 {[%clk 0:02:49]}  Bd8 {[%clk 0:01:32]} 24. Nb1 {[%clk 0:02:48]}  Ba5 {[%clk 0:01:33]} 25. Nd2 {[%clk 0:02:48]}  d5 {[%clk 0:01:32]} 26. Nb3 {[%clk 0:02:46]}  Bb6 {[%clk 0:01:31]} 27. a5 {[%clk 0:02:45]}  Ba7 {[%clk 0:01:29]} 28. b6 {[%clk 0:02:45]}  Bb8 {[%clk 0:01:29]} 29. Nxc5 {[%clk 0:02:45]}  Qc6 {[%clk 0:01:29]} 30. Rdc1 {[%clk 0:02:37]}  Qd6 {[%clk 0:01:29]} 31. g3 {[%clk 0:02:35]}  Bc6 {[%clk 0:01:26]} 32. a6 {[%clk 0:02:30]}  dxe4 {[%clk 0:01:24]} 33. fxe4 {[%clk 0:02:30]}  Nxe4 {[%clk 0:01:23]} 34. Nxe4 {[%clk 0:02:30]}  Bxe4 {[%clk 0:01:24]} 35. Rc8+ {[%clk 0:02:29]}  Qf8 {[%clk 0:00:14]} 36. Qc5 {[%clk 0:02:20]} 1-0


[Site "https://www.chess.com"]

[Event "Titled Tuesday Blitz June 28 Early 2022"]
[White "Csonka, Balazs"]
[Black "Vokhidov, Shamsiddin"]
[WhiteFideId "742910"]
[BlackFideId "14204223"]
[WhiteElo "2404"]
[BlackElo "2611"]
[Result "0-1"]
[Round "07"]
[TimeControl "180+1"]
[Date "2022.06.28"]
[WhiteClock "0:00:02"]
[BlackClock "0:00:45"]

1. Nf3 {[%clk 0:03:00]}  c5 {[%clk 0:03:00]} 2. c4 {[%clk 0:02:58]}  g6 {[%clk 0:03:00]} 3. Nc3 {[%clk 0:02:54]}  Bg7 {[%clk 0:03:00]} 4. g3 {[%clk 0:02:54]}  Nf6 {[%clk 0:03:00]} 5. Bg2 {[%clk 0:02:54]}  d5 {[%clk 0:03:01]} 6. cxd5 {[%clk 0:02:52]}  Nxd5 {[%clk 0:03:02]} 7. Nxd5 {[%clk 0:02:50]}  Qxd5 {[%clk 0:03:02]} 8. O-O {[%clk 0:02:50]}  Nc6 {[%clk 0:03:03]} 9. d3 {[%clk 0:02:49]}  O-O {[%clk 0:03:03]} 10. Be3 {[%clk 0:02:49]}  Bd7 {[%clk 0:03:03]} 11. Nd4 {[%clk 0:02:40]}  Qd6 {[%clk 0:03:03]} 12. Nxc6 {[%clk 0:02:35]}  Bxc6 {[%clk 0:03:04]} 13. Bxc6 {[%clk 0:02:35]}  Qxc6 {[%clk 0:03:05]} 14. Rc1 {[%clk 0:02:35]}  Qe6 {[%clk 0:03:04]} 15. Rxc5 {[%clk 0:02:28]}  Qxa2 {[%clk 0:03:03]} 16. Qa1 {[%clk 0:02:03]}  Qxa1 {[%clk 0:02:52]} 17. Rxa1 {[%clk 0:02:04]}  Bxb2 {[%clk 0:02:52]} 18. Rb1 {[%clk 0:02:03]}  b6 {[%clk 0:02:53]} 19. Rc7 {[%clk 0:01:56]}  Bf6 {[%clk 0:02:52]} 20. g4 {[%clk 0:01:52]}  Rfc8 {[%clk 0:02:52]} 21. Rbc1 {[%clk 0:01:46]}  Rxc7 {[%clk 0:02:51]} 22. Rxc7 {[%clk 0:01:47]}  a5 {[%clk 0:02:41]} 23. g5 {[%clk 0:01:41]}  Bg7 {[%clk 0:02:38]} 24. Bxb6 {[%clk 0:01:35]}  a4 {[%clk 0:02:38]} 25. Rc2 {[%clk 0:01:09]}  a3 {[%clk 0:02:22]} 26. Ra2 {[%clk 0:01:09]}  Bb2 {[%clk 0:02:18]} 27. Kg2 {[%clk 0:01:01]}  Kf8 {[%clk 0:02:10]} 28. Kf3 {[%clk 0:00:48]}  Ke8 {[%clk 0:02:10]} 29. Bc5 {[%clk 0:00:35]}  Ra5 {[%clk 0:02:06]} 30. d4 {[%clk 0:00:31]}  e5 {[%clk 0:02:06]} 31. e3 {[%clk 0:00:23]}  exd4 {[%clk 0:02:05]} 32. exd4 {[%clk 0:00:20]}  Kd7 {[%clk 0:02:03]} 33. Ke4 {[%clk 0:00:20]}  Ke6 {[%clk 0:02:01]} 34. f3 {[%clk 0:00:16]}  Ra4 {[%clk 0:02:00]} 35. h3 {[%clk 0:00:14]}  Bc1 {[%clk 0:01:54]} 36. h4 {[%clk 0:00:12]}  Bb2 {[%clk 0:01:52]} 37. Bb6 {[%clk 0:00:11]}  Kd6 {[%clk 0:01:42]} 38. Bc5+ {[%clk 0:00:11]}  Kc6 {[%clk 0:01:43]} 39. Ke5 {[%clk 0:00:10]}  Ra5 {[%clk 0:01:40]} 40. Ke4 {[%clk 0:00:07]}  Ra8 {[%clk 0:01:14]} 41. Bb4 {[%clk 0:00:06]}  Re8+ {[%clk 0:01:10]} 42. Kd3 {[%clk 0:00:05]}  Ra8 {[%clk 0:00:55]} 43. Kc4 {[%clk 0:00:06]}  Kd7 {[%clk 0:00:52]} 44. d5 {[%clk 0:00:03]}  Ra6 {[%clk 0:00:47]} 45. Kb3 {[%clk 0:00:03]}  Rb6 {[%clk 0:00:46]} 46. Kc4 {[%clk 0:00:04]}  Bc1 {[%clk 0:00:45]} 47. Bxa3 {[%clk 0:00:02]}  Ra6 {[%clk 0:00:45]} 0-1


[Site "https://www.chess.com"]